Cogmind - Beta 13 @@@ ROGUE MODE // 2024.04.01 @ 18:32:23 Player: Phosphophyllite Result: Destroyed by C-17 Slicer with Blade Saw Performance ------------- Evolutions (2) 1000 Regions Visited (4) 800 Robots Destroyed (23) 115 Value Destroyed (507) 507 Prototype IDs (0) 0 Alien Tech Used (0) 0 Bonus (0) 0 TOTAL SCORE: 2422 Bonus ------- None Cogmind --------- Core Integrity 0/550 Matter 272/300 Energy 99/100 System Corruption 0% Temperature Cool (0) Movement Core (50) Location -8/Materials Parts ------- > --- POWER (1) -------- (None) > --- PROPULSION (3) --- (None) > --- UTILITY (5) ------ (None) > --- WEAPON (2) ------- (None) > --- INVENTORY (5) ---- (None) Peak State ------------ > --- POWER ------------ Ion Engine > --- PROPULSION ------- Aluminum Leg Aluminum Leg Aluminum Leg > --- UTILITY ---------- Small Storage Unit Terrain Scanner Weapon Shielding Hacking Suite > --- WEAPON ----------- Assault Rifle Grenade Launcher > --- INVENTORY -------- Light Ion Engine Light Treads Light Treads EM Pulse Gun Light Cannon Datajack [Rating: 12] Favorites ----------- Power Ion Engine Engine Ion Engine Propulsion Aluminum Leg Treads Light Treads Leg Aluminum Leg Utility Small Storage Unit Device Terrain Scanner Storage Small Storage Unit Hackware Hacking Suite Protection Light Armor Plating Weapon Assault Rifle Energy Gun EM Pulse Gun Ballistic Gun Assault Rifle Ballistic Cannon Light Cannon Launcher Grenade Launcher Special Melee Weapon Datajack Build | -11 -10 -10 -9 -8 ------- Run | Yrd Mat Min Mat Mat Slots Evolved 4 | . . . 2 2 Power . | . . . . . Propulsion 1 | . . . . 1 Utility 3 | . . . 2 1 Weapon . | . . . . . Parts Attached 28 | 6 1 . 7 14 Power 3 | 1 . . . 2 Engine 3 | 1 . . . 2 Core . | . . . . . Reactor . | . . . . . Propulsion 8 | 2 . . 2 4 Treads 3 | . . . . 3 Leg 5 | 2 . . 2 1 Wheel . | . . . . . Hover . | . . . . . Flight . | . . . . . Utility 7 | 1 1 . 4 1 Device 2 | . . . 2 . Storage 1 | 1 . . . . Processor . | . . . . . Hackware 1 | . . . 1 . Protection 3 | . 1 . 1 1 Artifact . | . . . . . Weapon 10 | 2 . . 1 7 Energy Gun 2 | 1 . . . 1 Energy Cannon . | . . . . . Ballistic Gun 3 | 1 . . . 2 Ballistic Cannon 1 | . . . . 1 Launcher 3 | . . . 1 2 Special Weapon . | . . . . . Impact Weapon . | . . . . . Slashing Weapon . | . . . . . Piercing Weapon . | . . . . . Special Melee Weapon 1 | . . . . 1 Unidentified Prototypes . | . . . . . Parts Lost 17 | . . . 1 16 Power 2 | . . . . 2 Propulsion 5 | . . . . 5 Utility 4 | . . . 1 3 Weapon 6 | . . . . 6 Highest Loss Streak 7 | . . . 1 7 To Critical Strikes 1 | . . . . 1 Average Slot Usage (%) 79 | . 85 100 94 63 Engine 10 | . 14 14 11 8 Treads 5 | . . . . 11 Leg 17 | . 28 28 22 7 Device 5 | . . . 15 6 Storage 10 | . 14 14 11 7 Hackware 4 | . . . 2 8 Protection 4 | . . 14 10 2 Energy Gun 7 | . 14 14 6 1 Ballistic Gun 9 | . 14 14 11 5 Ballistic Cannon 1 | . . . . 2 Launcher 1 | . . . 4 . Naked Turns 38 | . . . . 38 Heaviest Build 20 | 14 17 17 20 17 Greatest Support 60 | 20 20 20 20 60 Greatest Overweight (x) 4 | 2 . . . 4 Average Overweight (x) . | . . . . . Largest Inventory Capacity 8 | 8 8 8 8 8 Average Capacity 7 | 7 8 8 8 7 Most Carried 8 | 8 8 8 8 7 Average Carried 5 | 5 7 7 7 2 Final Capacity 8 | 8 8 8 8 5 Final Carried 8 | 6 8 8 8 . Class Distribution -------------------- 100% | Mutant Dominant Class ---------------- Mutant | -10/Materials Mutant | -10/Mines Mutant | -9/Materials Mutant | -8/Materials Resources | -11 -10 -10 -9 -8 ----------- Run | Yrd Mat Min Mat Mat Matter Collected 630 | 221 . 57 63 289 Remotely . | . . . . . Salvage Created 705 | 51 20 . 310 324 Parts 42 | 4 1 . 20 17 Haulers Intercepted . | . . . . . Recyclers Shooed 1 | . . 1 . . Parts Field Recycled . | . . . . . Retrieved Matter . | . . . . . Parts Self-Destructed . | . . . . . Prevented . | . . . . . Kills | -11 -10 -10 -9 -8 ------- Run | Yrd Mat Min Mat Mat Combat Hostiles Destroyed 19 | . 1 . 9 9 Guns 10 | . 1 . 4 5 Cannons 3 | . . . . 3 AOE 6 | . . . 5 1 Classes Destroyed 6 | 1 1 . 3 1 Worker 1 | . . . 1 . Recycler 2 | 1 . . . 1 Operator 1 | . . . 1 . Swarmer 9 | . 1 . 3 5 Grunt 8 | . . . 6 2 Sentry 2 | . . . . 2 Best Kill Streak 10 | 1 1 . 10 4 Combat Bots Only 9 | . 1 . 9 3 Max Kills in Single Turn 3 | 1 1 . 3 1 Gunslinging 1 | . . . 1 . Exploded 3 | . . . 3 1 Melee . | . . . . . Uniques/NPCs Destroyed . | . . . . . Combat | -11 -10 -10 -9 -8 -------- Run | Yrd Mat Min Mat Mat Hostile Shots Fired 252 | . 6 . 107 139 Missed 83 | . 2 . 43 38 Damage Taken 2044 | . 29 . 520 1495 Core 634 | . . . 83 551 Absorbed by Shields 90 | . . . 90 . Redirected to Shielding 35 | . . . . 35 Core Remaining (%) 93 | 100 . 100 79 . Volleys Fired 70 | 1 2 . 21 46 Largest 2 | 2 2 . 2 2 Hottest 60 | 60 60 . 60 60 Shots Fired 108 | 2 4 . 36 66 Gun 90 | 2 4 . 30 54 Cannon 11 | . . . . 11 Launcher 7 | . . . 6 1 Special . | . . . . . Kinetic 77 | 1 2 . 21 53 Thermal . | . . . . . Explosive 7 | . . . 6 1 Electromagnetic 24 | 1 2 . 9 12 Robot Hit Streak 5 | 1 2 . 5 5 Robot Miss Streak 5 | 1 1 . 4 5 Penetration Max . | . . . . . Secondary Targets 2 | . . . 2 . Max Gunslinging Chain 1 | . . . 1 . Shots Hit Robots 60 | 1 2 . 17 40 Core Hits 35 | 1 1 1 15 17 Critical Kills . | . . . . . Critical Parts Destroyed . | . . . . . Critical Strikes . | . . . . . Melee Attacks 3 | . . . . 3 Impact . | . . . . . Slashing . | . . . . . Piercing . | . . . . . Sneak Attacks . | . . . . . Combat Hostiles . | . . . . . Follow-up Attacks . | . . . . . Damage Inflicted 1162 | 15 22 22 627 476 Guns 604 | 15 22 . 247 320 Cannons 100 | . . . . 100 Explosions 436 | . . . 380 56 Melee . | . . . . . Ramming 22 | . . 22 . . Kinetic 511 | 15 . . 159 337 Thermal 46 | . . . . 46 Explosive 390 | . . . 380 10 Electromagnetic 193 | . 22 . 88 83 Impact . | . . . . . Slashing . | . . . . . Piercing . | . . . . . Highest Corruption . | . . . . . Average Corruption . | . . . . . Corruption Purged . | . . . . . Corruption Blocked . | . . . . . Overload Shots . | . . . . . Overflow Damage 25 | . . . 25 . Projectiles . | . . . . . Explosions 25 | . . . 25 . Melee . | . . . . . Knockbacks . | . . . . . Impact . | . . . . . Kinetic . | . . . . . Secondary . | . . . . . Self-Inflicted Damage 29 | . . . 10 19 Shots 2 | . . . 1 1 Rammed . | . . . . . Targets Rammed 5 | . . 5 . . Kicked 5 | . . 5 . . Crushed . | . . . . . Highest Temperature 18 | . . . 8 18 Average Temperature 5 | . . . 5 5 Received Heat Transfer 699 | . . . 168 531 Siege Activations . | . . . . . Robots Corrupted . | . . . . . Combat Hostiles . | . . . . . Parts Fried . | . . . . . Impact Corruptions . | . . . . . Robots Melted . | . . . . . Combat Hostiles . | . . . . . Parts Melted . | . . . . . Heat Transferred 50 | . . . . 50 Parts Sabotaged . | . . . . . Parts Stolen . | . . . . . Parts Stripped . | . . . . . Power Chain Reactions 1 | . . . . 1 Alert | -11 -10 -10 -9 -8 ------- Run | Yrd Mat Min Mat Mat Peak Influence 320 | 5 51 19 320 302 Initial 135 | . 3 19 7 135 Average 116 | . 12 19 144 211 Maximum Alert Level 1 | . . . 1 1 Low Security (%) 63 | 100 100 100 60 27 Level 1 36 | . . . 39 72 Level 2 . | . . . . . Level 3 . | . . . . . Level 4 . | . . . . . Level 5 . | . . . . . High Security . | . . . . . Max Security . | . . . . . Squads Dispatched 6 | . 1 . 3 2 Investigation 2 | . . . 1 1 Extermination . | . . . . . Reinforcement 4 | . 1 . 2 1 Assault . | . . . . . Garrison . | . . . . . Intercept . | . . . . . Searches Triggered . | . . . . . Construction Impeded . | . . . . . Haulers Reinforced . | . . . . . Active Scanning Responses . | . . . . . Cargo Convoy Interrupts . | . . . . . Stealth | -11 -10 -10 -9 -8 --------- Run | Yrd Mat Min Mat Mat Distress Signals . | . . . . . Communications Jammed . | . . . . . Distress Signals . | . . . . . Times Spotted 45 | . 5 . 19 21 Peak Tracking Total 9 | . 5 . 9 9 Tactical Retreats 2 | . 1 . . 1 Traps | -11 -10 -10 -9 -8 ------- Run | Yrd Mat Min Mat Mat Traps Triggered . | . . . . . Indirectly . | . . . . . Trap Hack Attempts . | . . . . . Triggered . | . . . . . Disarmed . | . . . . . Reprogrammed . | . . . . . Reused . | . . . . . Traps Extracted . | . . . . . Installed . | . . . . . Triggered . | . . . . . Machines | -11 -10 -10 -9 -8 ---------- Run | Yrd Mat Min Mat Mat Machines Disabled . | . . . . . Max in Single Turn . | . . . . . Machines Repaired . | . . . . . Machines Dismantled . | . . . . . Machines Sabotaged . | . . . . . Overloaded Fab Kills . | . . . . . Hacking | -11 -10 -10 -9 -8 --------- Run | Yrd Mat Min Mat Mat Machines Accessed 5 | . 3 . 1 1 Terminals 5 | . 3 . 1 1 Fabricators . | . . . . . Repair Stations . | . . . . . Recycling Units . | . . . . . Scanalyzers . | . . . . . Garrison Access . | . . . . . Total Hacks 11 | . 7 . 2 2 Successful 7 | . 5 . 1 1 Failed 4 | . 2 . 1 1 Catastrophic 2 | . . . 1 1 Database Lockouts . | . . . . . Manual . | . . . . . Terminals 11 | . 7 . 2 2 Fabricators . | . . . . . Repair Stations . | . . . . . Recycling Units . | . . . . . Scanalyzers . | . . . . . Garrison Access . | . . . . . Terminal Hacks 7 | . 5 . 1 1 Record 4 | . 4 . . . Branch Access Points 1 | . . . 1 . Unreport Threat 1 | . 1 . . . Recall Reinforcements 1 | . . . . 1 Fabricator Hacks . | . . . . . Repair Station Hacks . | . . . . . Recycling Unit Hacks . | . . . . . Scanalyzer . | . . . . . Garrison Access Hacks . | . . . . . Unauthorized Hacks . | . . . . . Terminals . | . . . . . Fabricators . | . . . . . Repair Stations . | . . . . . Recycling Units . | . . . . . Scanalyzers . | . . . . . Garrison Access . | . . . . . Data Cores Recovered . | . . . . . Used . | . . . . . Hacking Detections 4 | . 2 . 1 1 Full Trace Events 4 | . 2 . 1 1 Feedback Events . | . . . . . Feedback Blocked . | . . . . . Robot Schematics Acquired . | . . . . . Robots Built . | . . . . . Authchips . | . . . . . Time . | . . . . . Total Robot Build Rating . | . . . . . Part Schematics Acquired . | . . . . . Parts Built . | . . . . . Authchips . | . . . . . Time . | . . . . . Total Part Build Rating . | . . . . . Parts Repaired . | . . . . . Time . | . . . . . Parts Recycled . | . . . . . Recycled Matter . | . . . . . Retrieved Matter . | . . . . . Retrieved Components . | . . . . . Parts Scanalyzed . | . . . . . Part Schematics Acquired . | . . . . . Parts Damaged . | . . . . . Bothacking | -11 -10 -10 -9 -8 ------------ Run | Yrd Mat Min Mat Mat Used RIF Installer . | . . . . . Robots Hacked 1 | . . . . 1 Non-combat . | . . . . . Combat 1 | . . . . 1 Robot Hacks Applied 1 | . . . . 1 parse_system 1 | . . . . 1 Relay Couplers Released . | . . . . . Fabnet Peak Effective % . | . . . . . Robots Rewired . | . . . . . Allies Hacked . | . . . . . Hacks Repelled . | . . . . . Allies | -11 -10 -10 -9 -8 -------- Run | Yrd Mat Min Mat Mat Total Allies . | . . . . . Largest Group . | . . . . . Highest-Rated Group . | . . . . . Highest-Rated Ally . | . . . . . Total Orders . | . . . . . Ally Attacks . | . . . . . Total Damage . | . . . . . Kills . | . . . . . Allies Corrupted . | . . . . . Allies Melted . | . . . . . Intel | -11 -10 -10 -9 -8 ------- Run | Yrd Mat Min Mat Mat Robot Analysis Total . | . . . . . Derelict Logs Recovered 1 | . . 1 . . Drone Launches . | . . . . . Drone Recoveries . | . . . . . Exploration | -11 -10 -10 -9 -8 ------------- Run | Yrd Mat Min Mat Mat Turns Passed 1168 | 66 285 137 210 470 Spaces Moved 756 | 46 224 105 118 263 Core 139 | 23 . . . 116 Treads 101 | . . . . 101 Legs 516 | 23 224 105 118 46 Wheels . | . . . . . Hover . | . . . . . Flight . | . . . . . Fastest Speed 50 | 50 120 120 120 50 Average Speed 117 | 104 120 120 120 116 Slowest Speed 250 | 150 120 120 120 250 Overloaded Moves . | . . . . . Propulsion Burnouts . | . . . . . Robots Hopped . | . . . . . Cave-ins Triggered . | . . . . . Exploration Rate (%) 23 | 3 48 28 19 20 Regions Visited 4 Branch Regions 1 Pre-discovered Areas . | . . . . . Known Exits Taken . | . . . . . Unknown Exits Taken 4 | 1 1 1 1 . Scrap Searched 2 | . . 2 . . Spaces Dug . | . . . . . Terrain Destroyed 40 | . . . 36 4 Melee . | . . . . . Projectile . | . . . . . AOE 40 | . . . 36 4 Terrain Rammed . | . . . . . Walls Destroyed . | . . . . . Machines Disabled . | . . . . . Actions | -11 -10 -10 -9 -8 --------- Run | Yrd Mat Min Mat Mat Total 927 | 60 237 116 151 363 Wait 36 | . 4 3 . 29 Move 752 | 45 223 104 117 263 Hop . | . . . . . Pick Up 22 | 8 5 2 3 4 Fast Attach 4 | 4 . . . . Attach 17 | 2 1 . 3 11 Detach . | . . . . . Swap 7 | . . . 4 3 Drop 11 | . 2 2 3 4 Fire 70 | 1 2 . 21 46 Melee 3 | . . . . 3 Ram . | . . . . . Kick 5 | . . 5 . . Crush . | . . . . . Escape Stasis . | . . . . . Rewire . | . . . . . Trap . | . . . . . Miscellaneous . | . . . . . Route ------- -11/Scrapyard -10/Materials (discovered 2 exits: *Mat / [*Min]) -10/Mines -9/Materials (discovered 4 exits: *Mat / Min / Sto x2) -8/Materials History --------- Turn | Location | Event 16 | -11/Scrapyard | Discovered new exit (range 15) 67 | -11/Scrapyard | Entered Materials 187 | -10/Materials | Discovered new exit (range 10) 270 | -10/Materials | Discovered new exit (range 11) 316 | -10/Materials | Build established: Mutant 352 | -10/Materials | Entered Mines 388 | -10/Mines | Learned Materials emergency access door positions 483 | -10/Mines | Discovered new exit (range 5) 489 | -10/Mines | Entered Materials 489 | -9/Materials | Evolved 2 slots: Utility x2 500 | -9/Materials | Identified exit to Mines 500 | -9/Materials | Identified exit to Storage 660 | -9/Materials | Destroyed 9 combat bots 678 | -9/Materials | Discovered new exit (range 14) 699 | -9/Materials | Entered another Materials area 699 | -8/Materials | Evolved 2 slots: Propulsion x1, Utility x1 855 | -8/Materials | Lost 7 parts (3n1u3w) 1096 | -8/Materials | Lost 5 parts (1p1n1u2w) 1129 | -8/Materials | Core integrity fell below 50% 1161 | -8/Materials | Core integrity fell below 20% 1162 | -8/Materials | Lost 3 parts (1p1n1u) 1169 | -8/Materials | Destroyed by C-17 Slicer with Blade Saw Last Messages --------------- T-07 Excavator is excavating. Dropped Lgt. Treads. U-05 Engineer lays Concrete. Dropped Sml. Storage Unit. R-06 Scavenger collects Sml. Storage Unit. T-07 Excavator is excavating. R-06 Scavenger collects Lgt. Treads. Hacking Suite destroyed. Lgt. Ion Engine destroyed. ALERT: Suspicious intruders detected, dispatching Cutter reinforcements to area. W-25 Informer knocked back. U-05 Engineer destroyed. Knocked back. U-05 Engineer lays Concrete. Acquired 19 matter. U-05 Engineer builds a Wall. U-05 Engineer lays Concrete. U-05 Engineer builds a Wall. Knocked back. Map ----- +----------------------------------------------------+ | ???????????????# #??# #??????????????????????? | | ???????????????# #?## ##?????????????????????? | | ???????????????# #?# #?????????????????????? | | ???????????????# ##?# #?????????????????????? | | ???????????????# #??# #?????????????????????? | | ???????????????# #?## #?????????????????????? | | ???????????????# #?# #??????????#???????????? | | ???????????????# #?# #???#?????#????????????? | | ?????????????#?# #?## #??????#???????????????? | | ???????????????# #?## #####??????????????????? | | ?????????#?????# #??# ## !##?????????????????? | | ???????????????# ####t ## !#?????????????????? | | ???????????#???# #?# !#?????????????????? | | ????????????#?## ### !#?????????????????? | | ???????????????# #?# !#?????????????????? | | ??????????##???# #?# !##?????????????????? | | ????#??????????# ### ####???"??????????????? | | ???????????????# #?## ###?????""?????????????? | | ??????#????????# #### #????#????"??"?????????? | | ??????????#????# ##"" #######??"?????????????? | | ??????????#????# ##T # #????????????????? | | ???????????????#% #### # """ #????????????????? | | ?????###########%*=#??# # """ #????????????????? | | ????## #=%%#### c# "S #????????????????? | | ?????# # % ## c# """ #????#???????????? | | ????## """ *# @#! "" #????????????????? | | ?????# """ =+ + #??#??#??????????? | | ?????# """ =#! # #????????????????? | | ?????# "Y" #= /##+### """ #????????????????? | | ?????# """ ## ## ## """ #?#??????????????? | | ?????# ## ## ## """ #????????????????? | | ?????############ ## ## #?????? ?????????? | | ?????????#???#### ## ########??#?????????????? | | ??????????#??#?## ## #???#???????????????????? | | ???????????#?#??# ## //#?#?????????????????????? | | ??????#??#??#???# ## / #???????????????????????? | | ??????????????#?# #### #???????????????????????? | | ????????????????# ######???#???????????????????? | | ????????#??????## #????????????????????????????? | | ???????????#????# #????????????????????????????? | | ????????????????# #????????????????????????????? | | ??????????????#?# #????????????????????????????? | | ????????????????# #??#?????????????????????????? | | ???????#?????#??# #?????????#??????????????????? | | ????????????????# ###??????#???????????????????? | | ????????????????# #????????????????????????????? | | ????????????????# #????????????????????????????? | | ????????????????# #????????????????????????????? | | ????????????????# #????????????????????????????? | | ????????????????# #????????????????????????????? | +----------------------------------------------------+ Best States ------------- Heat Dissipation 31 Energy Generation 10 Energy Capacity 250 Matter Stores 300 Matter Capacity 300 Sight Range 16 Terrain Scan Range 14 Terrain Scan Density 10 Armor Coverage 150 Weapon Shielding 33 Evasion (%) 55 Recoil Reduction 3 Offensive Hacking 10 Item Schematics ----------------- None Robot Schematics ------------------ None Fabricated ------------ Nothing Alien Tech Used ----------------- None Achievements -------------- None Challenges ------------ None Game ------ Seed HeartGyrokineticMatter Manual? 0 Play Time 00:23:28 Cumulative 4.8 hours Start 2024.04.01 @ 18:07:22 End 2024.04.01 @ 18:32:23 Sessions 1 Manual Loads 0 Difficulty Rogue Special Mode None Game No. 13 Rogue 13 Adventurer 0 Explorer 0 Win Type - Total 0 Types 0/0/0/0/0/0/0/0/0 Lore% 1 Gallery% 10 Achievement% 9 Wizard Run 0 Options --------- Layout 0 ASCII 0 Keyboard 0 Movement Mouse Keybinds 0 Fullscreen 1 Font 24/Smallcaps Map View 76x50 Zoom Use 0% Tactical HUD 0 Map Filters NONE Filters NONE Steam 1 RUN: 576bc04b-badf-42de-a429-0654b49e3b55